Cogmind - Beta 13 @@@ ROGUE MODE // 2024.04.05 @ 02:35:29 Player: Kana Result: Destroyed by as-97750 with Assembled Heavy Rifle Performance ------------- Evolutions (0) 0 Regions Visited (2) 400 Robots Destroyed (10) 50 Value Destroyed (106) 106 Prototype IDs (0) 0 Alien Tech Used (0) 0 Bonus (0) 0 TOTAL SCORE: 556 Bonus ------- None Cogmind --------- Core Integrity 0/250 Matter 193/300 Energy 78/100 System Corruption 7% Temperature Cool (0) Movement Core (150) Ox2 Location -10/Mines Parts ------- > --- POWER (1) -------- (None) > --- PROPULSION (2) --- (None) > --- UTILITY (2) ------ Small Storage Unit > --- WEAPON (2) ------- Assault Rifle > --- INVENTORY (8) ---- Light Ion Engine Targeting Computer Mining Laser Peak State ------------ > --- POWER ------------ Ion Engine > --- PROPULSION ------- Improved Treads Improved Treads > --- UTILITY ---------- Small Storage Unit Large Matter Pod > --- WEAPON ----------- Assault Rifle Assault Rifle > --- INVENTORY -------- Light Ion Engine Wheel Wheel Assault Rifle Grenade Launcher [Rating: 9] Favorites ----------- Power Ion Engine Engine Ion Engine Propulsion Improved Treads Treads Improved Treads Wheel Wheel Utility Small Storage Unit Storage Small Storage Unit Weapon Assault Rifle Energy Gun EM Pulse Gun Ballistic Gun Assault Rifle Launcher Grenade Launcher Build | -11 -10 -10 ------- Run | Yrd Mat Min Slots Evolved . | . . . Power . | . . . Propulsion . | . . . Utility . | . . . Weapon . | . . . Parts Attached 15 | 6 6 3 Power 1 | 1 . . Engine 1 | 1 . . Core . | . . . Reactor . | . . . Propulsion 4 | 2 2 . Treads 2 | . 2 . Leg . | . . . Wheel 2 | 2 . . Hover . | . . . Flight . | . . . Utility 3 | 1 2 . Device . | . . . Storage 3 | 1 2 . Processor . | . . . Hackware . | . . . Protection . | . . . Artifact . | . . . Weapon 7 | 2 2 3 Energy Gun 2 | 2 . . Energy Cannon . | . . . Ballistic Gun 4 | . 2 2 Ballistic Cannon . | . . . Launcher 1 | . . 1 Special Weapon . | . . . Impact Weapon . | . . . Slashing Weapon . | . . . Piercing Weapon . | . . . Special Melee Weapon . | . . . Unidentified Prototypes . | . . . Parts Lost 7 | . . 7 Power 1 | . . 1 Propulsion 2 | . . 2 Utility 1 | . . 1 Weapon 3 | . . 3 Highest Loss Streak 7 | . . 7 To Critical Strikes . | . . . Average Slot Usage (%) 98 | . 99 94 Engine 13 | . 14 12 Treads 14 | . 12 25 Wheel 13 | . 15 . Storage 27 | . 27 26 Energy Gun 3 | . 4 . Ballistic Gun 23 | . 23 25 Naked Turns . | . . . Heaviest Build 17 | 13 17 17 Greatest Support 46 | 20 46 46 Greatest Overweight (x) 2 | . . 2 Average Overweight (x) . | . . . Largest Inventory Capacity 8 | 8 8 8 Average Capacity 7 | 6 8 8 Most Carried 5 | 5 5 5 Average Carried 3 | . 2 4 Final Capacity 8 | 8 8 8 Final Carried 5 | . 5 3 Class Distribution -------------------- 100% | Mutant Dominant Class ---------------- Mutant | -10/Materials Mutant | -10/Mines Resources | -11 -10 -10 ----------- Run | Yrd Mat Min Matter Collected 434 | 184 250 . Remotely . | . . . Salvage Created 189 | . 164 25 Parts 24 | . 24 . Haulers Intercepted . | . . . Recyclers Shooed . | . . . Parts Field Recycled . | . . . Retrieved Matter . | . . . Parts Self-Destructed . | . . . Prevented . | . . . Kills | -11 -10 -10 ------- Run | Yrd Mat Min Combat Hostiles Destroyed 18 | . 9 9 Guns 9 | . 9 . AOE 9 | . . 9 Classes Destroyed 3 | . 2 1 Watcher 1 | . 1 . Swarmer 9 | . 9 . Assembled 9 | . . 9 Best Kill Streak 9 | . 3 9 Combat Bots Only 9 | . 3 9 Max Kills in Single Turn 3 | . 2 3 Gunslinging 1 | . 1 . Exploded 3 | . . 3 Melee . | . . . Uniques/NPCs Destroyed . | . . . Combat | -11 -10 -10 -------- Run | Yrd Mat Min Hostile Shots Fired 117 | . 59 58 Missed 34 | . 17 17 Damage Taken 1133 | . 333 800 Core 259 | . 78 181 Absorbed by Shields . | . . . Core Remaining (%) 100 | 100 . . Volleys Fired 39 | . 35 4 Largest 2 | . 2 2 Hottest 80 | . 80 50 Shots Fired 77 | . 70 7 Gun 74 | . 70 4 Cannon . | . . . Launcher 3 | . . 3 Special . | . . . Kinetic 62 | . 58 4 Thermal 6 | . 6 . Explosive 3 | . . 3 Electromagnetic 6 | . 6 . Robot Hit Streak 10 | . 6 10 Robot Miss Streak 4 | . 4 1 Penetration Max . | . . . Secondary Targets 3 | . 3 . Max Gunslinging Chain 1 | . 1 . Shots Hit Robots 37 | . 33 4 Core Hits 30 | . 11 19 Critical Kills . | . . . Critical Parts Destroyed . | . . . Critical Strikes . | . . . Melee Attacks . | . . . Impact . | . . . Slashing . | . . . Piercing . | . . . Sneak Attacks . | . . . Combat Hostiles . | . . . Follow-up Attacks . | . . . Damage Inflicted 1086 | . 419 667 Guns 451 | . 413 38 Cannons . | . . . Explosions 629 | . . 629 Melee . | . . . Ramming 6 | . 6 . Kinetic 374 | . 336 38 Thermal 22 | . 22 . Explosive 629 | . . 629 Electromagnetic 55 | . 55 . Impact . | . . . Slashing . | . . . Piercing . | . . . Highest Corruption 7 | . 2 7 Average Corruption 2 | . 2 2 Corruption Purged . | . . . Corruption Blocked . | . . . Effects 8 | . 7 1 Message Errors 3 | . 3 . Matter Fused 2 | . 2 . Heat Flow Errors 1 | . 1 . Data Loss (minor) 2 | . 1 1 Overload Shots . | . . . Overflow Damage 47 | . . 47 Projectiles . | . . . Explosions 47 | . . 47 Melee . | . . . Knockbacks . | . . . Impact . | . . . Kinetic . | . . . Secondary . | . . . Self-Inflicted Damage 31 | . 3 28 Shots 2 | . . 2 Rammed 1 | . 1 . Targets Rammed 1 | . 1 . Kicked . | . . . Crushed . | . . . Highest Temperature 140 | . 140 83 Average Temperature 52 | . 53 50 Received Heat Transfer 180 | . . 180 Siege Activations . | . . . Robots Corrupted . | . . . Combat Hostiles . | . . . Parts Fried . | . . . Impact Corruptions . | . . . Robots Melted . | . . . Combat Hostiles . | . . . Parts Melted . | . . . Heat Transferred 50 | . 50 . Parts Sabotaged . | . . . Parts Stolen . | . . . Parts Stripped . | . . . Power Chain Reactions . | . . . Alert | -11 -10 -10 ------- Run | Yrd Mat Min Peak Influence 165 | . 165 46 Initial 43 | . . 43 Average 76 | . 90 40 Maximum Alert Level . | . . . Low Security (%) 100 | 100 100 100 Level 1 . | . . . Level 2 . | . . . Level 3 . | . . . Level 4 . | . . . Level 5 . | . . . High Security . | . . . Max Security . | . . . Squads Dispatched 1 | . 1 . Investigation . | . . . Extermination . | . . . Reinforcement 1 | . 1 . Assault . | . . . Garrison . | . . . Intercept . | . . . Searches Triggered . | . . . Construction Impeded . | . . . Haulers Reinforced . | . . . Active Scanning Responses . | . . . Cargo Convoy Interrupts . | . . . Stealth | -11 -10 -10 --------- Run | Yrd Mat Min Distress Signals 1 | . 1 . Communications Jammed . | . . . Distress Signals . | . . . Times Spotted 29 | . 14 15 Peak Tracking Total 15 | . 4 15 Tactical Retreats 1 | . 1 . Traps | -11 -10 -10 ------- Run | Yrd Mat Min Traps Triggered . | . . . Indirectly . | . . . Trap Hack Attempts . | . . . Triggered . | . . . Disarmed . | . . . Reprogrammed . | . . . Reused . | . . . Traps Extracted . | . . . Installed . | . . . Triggered . | . . . Machines | -11 -10 -10 ---------- Run | Yrd Mat Min Machines Disabled . | . . . Max in Single Turn . | . . . Machines Repaired . | . . . Machines Dismantled . | . . . Machines Sabotaged . | . . . Overloaded Fab Kills . | . . . Hacking | -11 -10 -10 --------- Run | Yrd Mat Min Machines Accessed . | . . . Terminals . | . . . Fabricators . | . . . Repair Stations . | . . . Recycling Units . | . . . Scanalyzers . | . . . Garrison Access . | . . . Total Hacks . | . . . Successful . | . . . Failed . | . . . Catastrophic . | . . . Database Lockouts . | . . . Manual . | . . . Terminals . | . . . Fabricators . | . . . Repair Stations . | . . . Recycling Units . | . . . Scanalyzers . | . . . Garrison Access . | . . . Terminal Hacks . | . . . Fabricator Hacks . | . . . Repair Station Hacks . | . . . Recycling Unit Hacks . | . . . Scanalyzer . | . . . Garrison Access Hacks . | . . . Unauthorized Hacks . | . . . Terminals . | . . . Fabricators . | . . . Repair Stations . | . . . Recycling Units . | . . . Scanalyzers . | . . . Garrison Access . | . . . Data Cores Recovered . | . . . Used . | . . . Hacking Detections . | . . . Full Trace Events . | . . . Feedback Events . | . . . Feedback Blocked . | . . . Robot Schematics Acquired . | . . . Robots Built . | . . . Authchips . | . . . Time . | . . . Total Robot Build Rating . | . . . Part Schematics Acquired . | . . . Parts Built . | . . . Authchips . | . . . Time . | . . . Total Part Build Rating . | . . . Parts Repaired . | . . . Time . | . . . Parts Recycled . | . . . Recycled Matter . | . . . Retrieved Matter . | . . . Retrieved Components . | . . . Parts Scanalyzed . | . . . Part Schematics Acquired . | . . . Parts Damaged . | . . . Bothacking | -11 -10 -10 ------------ Run | Yrd Mat Min Used RIF Installer . | . . . Robots Hacked . | . . . Non-combat . | . . . Combat . | . . . Robot Hacks Applied . | . . . Relay Couplers Released . | . . . Fabnet Peak Effective % . | . . . Robots Rewired . | . . . Allies Hacked . | . . . Hacks Repelled . | . . . Allies | -11 -10 -10 -------- Run | Yrd Mat Min Total Allies . | . . . Largest Group . | . . . Highest-Rated Group . | . . . Highest-Rated Ally . | . . . Total Orders . | . . . Ally Attacks . | . . . Total Damage . | . . . Kills . | . . . Allies Corrupted . | . . . Allies Melted . | . . . Intel | -11 -10 -10 ------- Run | Yrd Mat Min Robot Analysis Total . | . . . Derelict Logs Recovered 1 | . . 1 Drone Launches . | . . . Drone Recoveries . | . . . Exploration | -11 -10 -10 ------------- Run | Yrd Mat Min Turns Passed 785 | 52 600 133 Spaces Moved 584 | 56 453 75 Core 15 | 14 . 1 Treads 211 | . 137 74 Legs . | . . . Wheels 358 | 42 316 . Hover . | . . . Flight . | . . . Fastest Speed 50 | 50 80 150 Average Speed 108 | 72 104 159 Slowest Speed 160 | 80 160 160 Overloaded Moves . | . . . Propulsion Burnouts . | . . . Robots Hopped . | . . . Cave-ins Triggered . | . . . Exploration Rate (%) 37 | 3 83 26 Regions Visited 2 Branch Regions 1 Pre-discovered Areas . | . . . Known Exits Taken . | . . . Unknown Exits Taken 2 | 1 1 . Scrap Searched . | . . . Spaces Dug . | . . . Terrain Destroyed 6 | . . 6 Melee . | . . . Projectile . | . . . AOE 6 | . . 6 Terrain Rammed . | . . . Walls Destroyed . | . . . Machines Disabled . | . . . Actions | -11 -10 -10 --------- Run | Yrd Mat Min Total 660 | 67 511 82 Wait 1 | . 1 . Move 582 | 55 452 75 Hop . | . . . Pick Up 17 | 6 11 . Fast Attach . | . . . Attach 9 | 6 1 2 Detach . | . . . Swap 6 | . 5 1 Drop 5 | . 5 . Fire 39 | . 35 4 Melee . | . . . Ram 1 | . 1 . Kick . | . . . Crush . | . . . Escape Stasis . | . . . Rewire . | . . . Trap . | . . . Miscellaneous . | . . . Route ------- -11/Scrapyard -10/Materials (discovered 3 exits: [*Mat x2] / [*Min]) -10/Mines History --------- Turn | Location | Event 28 | -11/Scrapyard | Discovered new exit (range 15) 53 | -11/Scrapyard | Entered Materials 159 | -10/Materials | Discovered new exit (range 3) 283 | -10/Materials | Discovered new exit (range 8) 306 | -10/Materials | Build established: Mutant 631 | -10/Materials | Discovered new exit (range 8) 653 | -10/Materials | Entered Mines 750 | -10/Mines | Assembled infested the area 751 | -10/Mines | Met a Derelict bent on vengeance 783 | -10/Mines | Core integrity fell below 50% 786 | -10/Mines | Core integrity fell below 20% 786 | -10/Mines | Destroyed by as-97750 with Assembled Heavy Rifle Last Messages --------------- 00773_ as-24400 destroyed. 00775_ Ion Engine destroyed. 00776_ as-63200 destroyed. 00776_ Destroyed Asb. F-torch. 00776_ as-60588 destroyed. 00776_ as-38670 destroyed. 00777_ Imp. Treads destroyed. 00777_ System corrupted by crushing effect (+2). 00778_ Imp. Treads destroyed. 00778_ Lrg. Matter Pod destroyed. 00778_ System corrupted by crushing effect (+3). 00778_ Knocked back. 00779_ Destroyed Asb. Hover Unit. 00779_ as-02104 destroyed. 00779_ as-64954 destroyed. 00779_ Assault Rifle destroyed. 00779_ Destroyed Assault Rifle. 00779_ as-00509 destroyed. 00782_ Grenade Launcher destroyed. 00785_ Assault Rifle destroyed. Map ----- +----------------------------------------------------+ | #???????????????????????????????????????? | | ### ####???????????????????????????????????????? | | #### ####??????????????????????????????????????? | | #??????????????????????????????????????? | | ## #??????????????????????????????????????? | | ######### #??????????????????????????????????????? | | ????????# #????????????? ???????????????????????? | | ????????# #???????????? ??????????????????????? | | ????????# #???????????? #??????????????????????? | | ????????# #??????????? ???????????????????????? | | ????????# #??????????? ????????????????????????? | | ????????# #??????????# ????????????????????????? | | ????????# #?????????# ?????????????????????????? | | ????????# #####????? ??????????????????????????? | | ????????# #???## #??????????????????????????? | | ????????##### #??## #??????????????????????????? | | ????????????# #?## #??????????????????????????? | | ????????????# #?# #??####????????????????????? | | ????????????# #?# #???# ##???????????????????? | | ????????????# #??# #????# #???????????????????? | | ????????????# #### #????# #???????????????????? | | ????????????# #????# #???????????????????? | | ????????????###### #???## #????????????????????? | | ????????????????# #?### #????????????????????? | | ????????????????# ### #????????????????????? | | ????????????????# ## @ ##????????????????????? | | ????????????????## aa##?????????????????????? | | ?????????????????# % #??????????????????????? | | ?????????????????# #??????????????????????? | | ?????????????????## #??????????????????????? | | ?????????????????# a #??????????????????????? | | ?????????????????# ##??????????????????????? | | ????????????????# #??????????????????????? | | ????????????????# ! ?????????????????????? | | ????????????????# %! ????????????????????? | | ????????????????##*%a!a ### ???????????????????? | | ?????????????????## *%##??# #??????????????????? | | ??????????????????# a#???? ##??????????????????? | | ?????????????????? #?????#???????????????????? | | ?????????????????? ?????????????????????????? | | ?????????????????# ?????????????????????????? | | ?????????????????? ?????????????????????????? | | ?????????????????? |?????????????????????????? | | ?????????????????????????????????????????????????? | | ?????????????????????????????????????????????????? | | ?????????????????????????????????????????????????? | | ?????????????????????????????????????????????????? | | ?????????????????????????????????????????????????? | | ?????????????????????????????????????????????????? | | ?????????????????????????????????????????????????? | +----------------------------------------------------+ Best States ------------- Heat Dissipation 25 Energy Generation 10 Energy Capacity 500 Matter Stores 311 Matter Capacity 450 Sight Range 16 Terrain Scan Density 10 Evasion (%) 50 Recoil Reduction 2 Item Schematics ----------------- None Robot Schematics ------------------ None Fabricated ------------ Nothing Alien Tech Used ----------------- None Achievements -------------- None Challenges ------------ None Game ------ Seed CatalystReactionAmplifier Manual? 0 Play Time 00:08:40 Cumulative 5.1 hours Start 2024.04.05 @ 02:25:37 End 2024.04.05 @ 02:35:29 Sessions 1 Manual Loads 0 Difficulty Rogue Special Mode None Game No. 10 Rogue 10 Adventurer 0 Explorer 0 Win Type - Total 0 Types 0/0/0/0/0/0/0/0/0 Lore% 4 Gallery% 18 Achievement% 14 Wizard Run 0 Options --------- Layout 1 ASCII 0 Keyboard 0 Movement Mouse Keybinds 0 Fullscreen 1 Font 24/Smallcaps Map View 50x35 Zoom Use 0% Tactical HUD 1 Map Filters NONE Filters NONE Steam 1 RUN: eb4aa010-d69e-4b5d-ab2d-5b35db5340c5